[Event "NJSK 2026 Jeugd C"]
[Site "Helmond, Netherlands"]
[Date "2026.04.26"]
[Round "2.9"]
[White "Zhang, Xiheng"]
[Black "Gupta, Akul"]
[Result "1-0"]
[TimeControl "90min/40moves + 30sec/move"]
[WhiteTitle "-"]
[BlackTitle "-"]
[WhiteFideId "40102386"]
[BlackFideId "1084194"]
[WhiteElo "2135"]
[BlackElo "2017"]

1. e4 {[%clk 01:30:59]} c5 {[%clk 01:30:56]} {[%emt 00:00:03]} 2. Nf3 {[%clk
01:31:25]} {[%emt 00:00:03]} e6 {[%clk 01:31:17]} {[%emt 00:00:09]} 3. d4
{[%clk 01:31:50]} {[%emt 00:00:05]} cxd4 {[%clk 01:31:41]} {[%emt 00:00:06]} 4.
Nxd4 {[%clk 01:32:16]} {[%emt 00:00:04]} Nf6 {[%clk 01:32:03]} {[%emt
00:00:09]} 5. Nc3 {[%clk 01:32:40]} {[%emt 00:00:05]} Nc6 {[%clk 01:32:29]}
{[%emt 00:00:05]} 6. Nxc6 {[%clk 01:33:00]} {[%emt 00:00:10]} bxc6 {[%clk
01:32:53]} {[%emt 00:00:06]} 7. e5 {[%clk 01:33:27]} {[%emt 00:00:02]} Nd5
{[%clk 01:33:17]} {[%emt 00:00:06]} 8. Ne4 {[%clk 01:33:52]} {[%emt 00:00:05]}
Qc7 {[%clk 01:33:44]} {[%emt 00:00:03]} 9. f4 {[%clk 01:34:16]} {[%emt
00:00:05]} Qb6 {[%clk 01:34:11]} {[%emt 00:00:04]} 10. c4 {[%clk 01:34:39]}
{[%emt 00:00:07]} Bb4+ {[%clk 01:34:38]} {[%emt 00:00:04]} 11. Ke2 {[%clk
01:35:01]} {[%emt 00:00:07]} f5 {[%clk 01:35:04]} {[%emt 00:00:04]} 12. exf6
{[%clk 01:35:23]} {[%emt 00:00:08]} Nxf6 {[%clk 01:35:28]} {[%emt 00:00:06]} 13.
Be3 {[%clk 01:35:46]} {[%emt 00:00:07]} Qb8 {[%clk 01:35:18]} {[%emt 00:00:40]}
14. Nxf6+ {[%clk 01:29:24]} {[%emt 00:06:52]} gxf6 {[%clk 01:35:38]} {[%emt
00:00:11]} 15. Kf2 {[%clk 01:26:18]} {[%emt 00:03:35]} O-O {[%clk 01:35:59]}
{[%emt 00:00:08]} 16. Bd3 {[%clk 01:23:33]} {[%emt 00:03:17]} d5 {[%clk
01:35:15]} {[%emt 00:01:13]} 17. Qf3 {[%clk 01:19:39]} {[%emt 00:04:24]} Qd6
{[%clk 01:28:10]} {[%emt 00:07:35]} 18. Rad1 {[%clk 01:07:27]} {[%emt
00:12:42]} Kh8 {[%clk 01:21:48]} {[%emt 00:06:52]} 19. Rhf1 {[%clk 01:00:47]}
{[%emt 00:07:10]} Bd7 {[%clk 01:06:04]} {[%emt 00:16:14]} 20. Kg1 {[%clk
00:57:35]} {[%emt 00:03:42]} a5 {[%clk 01:05:31]} {[%emt 00:01:02]} 21. Kh1
{[%clk 00:51:46]} {[%emt 00:06:20]} Rae8 {[%clk 01:03:18]} {[%emt 00:02:42]} 22.
Bxh7 {[%clk 00:41:19]} {[%emt 00:10:57]} Re7 {[%clk 00:44:57]} {[%emt
00:18:52]} 23. Bg6 {[%clk 00:36:33]} {[%emt 00:05:16]} Kg7 {[%clk 00:40:22]}
{[%emt 00:05:04]} 24. Qg4 {[%clk 00:34:44]} {[%emt 00:02:20]} Rh8 {[%clk
00:37:49]} {[%emt 00:03:02]} 25. Bh5+ {[%clk 00:32:29]} {[%emt 00:02:46]} Kf8
{[%clk 00:37:06]} {[%emt 00:01:13]} 26. Qg6 {[%clk 00:32:49]} {[%emt 00:00:10]}
Rxh5 {[%clk 00:29:44]} {[%emt 00:07:51]} 27. Qxh5 {[%clk 00:32:51]} {[%emt
00:00:28]} Rg7 {[%clk 00:30:12]} {[%emt 00:00:03]} 28. f5 {[%clk 00:31:51]}
{[%emt 00:01:30]} Be8 {[%clk 00:26:59]} {[%emt 00:03:42]} 29. Qh8+ {[%clk
00:31:32]} {[%emt 00:00:49]} 1-0

[Event "NJSK 2026 Jeugd C"]
[Site "Helmond, Netherlands"]
[Date "2026.04.26"]
[Round "2.10"]
[White "Lalkota, Sai Pranav Tejas"]
[Black "Zhou, Yanyang"]
[Result "1/2-1/2"]
[TimeControl "90min/40moves + 30sec/move"]
[WhiteTitle "-"]
[BlackTitle "-"]
[WhiteFideId "1087690"]
[BlackFideId "40109739"]
[WhiteElo "1830"]
[BlackElo "1860"]

1. c4 {[%clk 01:30:57]} {[%emt 00:00:03]} e5 {[%clk 01:30:59]} {[%emt
00:00:01]} 2. g3 {[%clk 01:31:16]} {[%emt 00:00:11]} c6 {[%clk 01:31:21]}
{[%emt 00:00:07]} 3. Bg2 {[%clk 01:31:17]} {[%emt 00:00:30]} d5 {[%clk
01:31:46]} {[%emt 00:00:05]} 4. cxd5 {[%clk 01:30:43]} {[%emt 00:01:05]} cxd5
{[%clk 01:32:12]} {[%emt 00:00:03]} 5. d4 {[%clk 01:30:58]} {[%emt 00:00:15]}
e4 {[%clk 01:32:35]} {[%emt 00:00:08]} 6. Nc3 {[%clk 01:31:16]} {[%emt
00:00:11]} Nf6 {[%clk 01:32:53]} {[%emt 00:00:10]} 7. Bf4 {[%clk 01:31:01]}
{[%emt 00:00:47]} Nc6 {[%clk 01:29:51]} {[%emt 00:03:32]} 8. f3 {[%clk
01:24:06]} {[%emt 00:07:25]} Bb4 {[%clk 01:25:22]} {[%emt 00:04:58]} 9. a3
{[%clk 01:17:40]} {[%emt 00:06:57]} Bxc3+ {[%clk 01:25:02]} {[%emt 00:00:50]}
10. bxc3 {[%clk 01:18:02]} {[%emt 00:00:08]} Bf5 {[%clk 01:20:21]} {[%emt
00:05:10]} 11. Qb3 {[%clk 01:14:59]} {[%emt 00:03:34]} Qd7 {[%clk 01:18:43]}
{[%emt 00:02:06]} 12. fxe4 {[%clk 01:08:20]} {[%emt 00:07:11]} Nxe4 {[%clk
01:17:07]} {[%emt 00:02:05]} 13. Nf3 {[%clk 01:08:34]} {[%emt 00:00:17]} O-O
{[%clk 01:16:03]} {[%emt 00:01:33]} 14. O-O {[%clk 01:07:30]} {[%emt 00:01:34]}
Rac8 {[%clk 01:14:01]} {[%emt 00:02:33]} 15. Rac1 {[%clk 01:06:04]} {[%emt
00:01:56]} Nf6 {[%clk 01:10:45]} {[%emt 00:03:45]} 16. Ne5 {[%clk 01:05:33]}
{[%emt 00:01:02]} Nxe5 {[%clk 01:09:41]} {[%emt 00:01:34]} 17. Bxe5 {[%clk
01:05:52]} {[%emt 00:00:10]} Ne4 {[%clk 01:09:21]} {[%emt 00:00:50]} 18. Bf4
{[%clk 00:57:46]} {[%emt 00:08:36]} Rc6 {[%clk 01:04:11]} {[%emt 00:05:40]} 19.
c4 {[%clk 00:53:28]} {[%emt 00:04:49]} Rxc4 {[%clk 01:01:34]} {[%emt 00:03:06]}
20. Rxc4 {[%clk 00:53:47]} {[%emt 00:00:11]} dxc4 {[%clk 01:01:58]} {[%emt
00:00:06]} 21. Qxc4 {[%clk 00:54:11]} {[%emt 00:00:07]} Rc8 {[%clk 00:58:44]}
{[%emt 00:03:44]} 22. Qb4 {[%clk 00:54:32]} {[%emt 00:00:08]} b6 {[%clk
00:57:35]} {[%emt 00:01:40]} 23. Rc1 {[%clk 00:52:24]} {[%emt 00:02:37]} Rxc1+
{[%clk 00:48:32]} {[%emt 00:09:34]} 24. Bxc1 {[%clk 00:52:47]} {[%emt
00:00:07]} Nf6 {[%clk 00:47:19]} {[%emt 00:01:42]} 25. Bg5 {[%clk 00:52:29]}
{[%emt 00:00:48]} Nd5 {[%clk 00:44:38]} {[%emt 00:03:12]} 26. Qc4 {[%clk
00:51:38]} {[%emt 00:01:21]} Be6 {[%clk 00:43:08]} {[%emt 00:01:59]} 27. Qd3
{[%clk 00:51:58]} {[%emt 00:00:10]} h6 {[%clk 00:42:53]} {[%emt 00:00:45]} 28.
Bd2 {[%clk 00:52:21]} {[%emt 00:00:07]} f5 {[%clk 00:42:46]} {[%emt 00:00:38]}
29. g4 {[%clk 00:50:21]} {[%emt 00:02:30]} Nf6 {[%clk 00:42:40]} {[%emt
00:00:36]} 30. gxf5 {[%clk 00:50:32]} {[%emt 00:00:18]} Bxf5 {[%clk 00:43:04]}
{[%emt 00:00:06]} 31. e4 {[%clk 00:50:43]} {[%emt 00:00:19]} Bg6 {[%clk
00:43:00]} {[%emt 00:00:34]} 32. Qc4+ {[%clk 00:50:39]} {[%emt 00:00:34]} Kh7
{[%clk 00:42:33]} {[%emt 00:00:57]} 33. e5 {[%clk 00:49:18]} {[%emt 00:01:51]}
Ng4 {[%clk 00:39:43]} {[%emt 00:03:19]} 34. e6 {[%clk 00:48:05]} {[%emt
00:01:44]} Qd6 {[%clk 00:38:13]} {[%emt 00:02:00]} 35. d5 {[%clk 00:44:21]}
{[%emt 00:04:14]} Qxh2+ {[%clk 00:35:58]} {[%emt 00:02:45]} 36. Kf1 {[%clk
00:44:44]} {[%emt 00:00:06]} Ne5 {[%clk 00:35:25]} {[%emt 00:01:03]} 37. Qf4
{[%clk 00:44:46]} {[%emt 00:00:29]} Qh5 {[%clk 00:31:23]} {[%emt 00:04:32]} 38.
Kg1 {[%clk 00:38:37]} {[%emt 00:06:38]} Qd1+ {[%clk 00:29:00]} {[%emt
00:02:53]} 39. Kh2 {[%clk 00:38:46]} {[%emt 00:00:20]} Nd3 {[%clk 00:26:53]}
{[%emt 00:02:38]} 40. Qe3 {[%clk 00:38:37]} {[%emt 00:00:38]} Qh5+ {[%clk
00:26:40]} {[%emt 00:00:44]} 41. Kg1 {[%clk 00:38:59]} {[%emt 00:00:08]} Qd1+
{[%clk 00:26:50]} {[%emt 00:00:20]} 42. Kh2 {[%clk 00:39:24]} {[%emt 00:00:06]}
Qh5+ {[%clk 00:27:15]} {[%emt 00:00:05]} 43. Kg1 {[%clk 00:37:19]} {[%emt
00:02:34]} 1/2-1/2

[Event "NJSK 2026 Jeugd C"]
[Site "Helmond, Netherlands"]
[Date "2026.04.26"]
[Round "2.11"]
[White "Nadrshin, Oleg"]
[Black "Suthan, Aadvik"]
[Result "1-0"]
[TimeControl "90min/40moves + 30sec/move"]
[WhiteTitle "-"]
[BlackTitle "-"]
[WhiteFideId "40111873"]
[BlackFideId "1095765"]
[WhiteElo "1894"]
[BlackElo "1822"]

1. e4 {[%clk 01:30:58]} {[%emt 00:00:03]} e5 {[%clk 01:30:53]} {[%emt
00:00:06]} 2. Nf3 {[%clk 01:31:23]} {[%emt 00:00:04]} Nc6 {[%clk 01:31:16]}
{[%emt 00:00:08]} 3. Bb5 {[%clk 01:31:48]} {[%emt 00:00:05]} Nf6 {[%clk
01:31:29]} {[%emt 00:00:17]} 4. O-O {[%clk 01:32:10]} {[%emt 00:00:08]} Nxe4
{[%clk 01:31:50]} {[%emt 00:00:09]} 5. d4 {[%clk 01:32:31]} {[%emt 00:00:07]}
Nd6 {[%clk 01:32:01]} {[%emt 00:00:20]} 6. Bxc6 {[%clk 01:32:41]} {[%emt
00:00:21]} dxc6 {[%clk 01:32:08]} {[%emt 00:00:24]} 7. dxe5 {[%clk 01:33:04]}
{[%emt 00:00:06]} Nf5 {[%clk 01:32:23]} {[%emt 00:00:15]} 8. Qxd8+ {[%clk
01:33:22]} Kxd8 {[%clk 01:32:07]} {[%emt 00:00:58]} 9. Nc3 {[%clk 01:33:43]}
{[%emt 00:00:09]} h6 {[%clk 01:29:33]} {[%emt 00:03:04]} 10. h3 {[%clk
01:31:43]} {[%emt 00:02:29]} Be6 {[%clk 01:27:38]} {[%emt 00:02:26]} 11. Rd1+
{[%clk 01:31:04]} {[%emt 00:01:09]} Ke8 {[%clk 01:27:51]} {[%emt 00:00:17]} 12.
g4 {[%clk 01:24:46]} {[%emt 00:06:48]} Ne7 {[%clk 01:25:46]} {[%emt 00:02:35]}
13. Nd4 {[%clk 01:19:54]} {[%emt 00:05:20]} Bd7 {[%clk 01:22:16]} {[%emt
00:03:59]} 14. Kg2 {[%clk 01:07:23]} {[%emt 00:13:03]} a6 {[%clk 01:16:36]}
{[%emt 00:06:05]} 15. f4 {[%clk 00:52:45]} {[%emt 00:15:14]} c5 {[%clk
01:14:24]} {[%emt 00:02:42]} 16. Nb3 {[%clk 00:47:55]} {[%emt 00:05:18]} b6
{[%clk 01:10:25]} {[%emt 00:04:30]} 17. Kg3 {[%clk 00:43:26]} {[%emt 00:05:00]}
h5 {[%clk 01:05:31]} {[%emt 00:05:24]} 18. f5 {[%clk 00:36:30]} {[%emt
00:07:25]} g6 {[%clk 01:03:33]} {[%emt 00:02:28]} 19. Ne4 {[%clk 00:30:37]}
{[%emt 00:06:25]} Bg7 {[%clk 00:54:08]} {[%emt 00:09:53]} 20. f6 {[%clk
00:30:19]} {[%emt 00:00:49]} Bf8 {[%clk 00:54:32]} {[%emt 00:00:06]} 21. fxe7
{[%clk 00:30:27]} {[%emt 00:00:22]} Bxe7 {[%clk 00:54:51]} {[%emt 00:00:10]} 22.
Nf6+ {[%clk 00:27:37]} {[%emt 00:03:21]} Bxf6 {[%clk 00:54:35]} {[%emt
00:00:45]} 23. exf6 {[%clk 00:28:04]} {[%emt 00:00:03]} hxg4 {[%clk 00:53:58]}
{[%emt 00:01:07]} 24. hxg4 {[%clk 00:28:29]} {[%emt 00:00:06]} Be6 {[%clk
00:53:54]} {[%emt 00:00:33]} 25. Bg5 {[%clk 00:27:41]} {[%emt 00:01:19]} a5
{[%clk 00:52:47]} {[%emt 00:01:38]} 26. Rh1 {[%clk 00:24:08]} {[%emt 00:03:59]}
Rxh1 {[%clk 00:53:01]} {[%emt 00:00:18]} 27. Rxh1 {[%clk 00:24:34]} {[%emt
00:00:05]} Kd7 {[%clk 00:53:15]} {[%emt 00:00:16]} 28. a3 {[%clk 00:20:54]}
{[%emt 00:04:11]} Kc6 {[%clk 00:53:27]} {[%emt 00:00:16]} 29. Re1 {[%clk
00:18:52]} {[%emt 00:02:31]} Rd8 {[%clk 00:51:57]} {[%emt 00:01:58]} 30. Bh6
{[%clk 00:17:50]} {[%emt 00:01:36]} Bd5 {[%clk 00:48:26]} {[%emt 00:04:00]} 31.
Re7 {[%clk 00:17:11]} {[%emt 00:01:10]} Rd7 {[%clk 00:47:48]} {[%emt 00:01:07]}
32. Rxd7 {[%clk 00:16:42]} {[%emt 00:01:00]} Kxd7 {[%clk 00:48:09]} {[%emt
00:00:09]} 33. Kf4 {[%clk 00:15:31]} {[%emt 00:01:41]} Ke6 {[%clk 00:48:07]}
{[%emt 00:00:32]} 34. Bg7 {[%clk 00:14:19]} {[%emt 00:01:43]} a4 {[%clk
00:46:24]} {[%emt 00:02:12]} 35. Nd2 {[%clk 00:14:09]} {[%emt 00:00:40]} b5
{[%clk 00:46:18]} {[%emt 00:00:36]} 36. Ne4 {[%clk 00:13:26]} {[%emt 00:01:13]}
c4 {[%clk 00:45:56]} {[%emt 00:00:51]} 37. Ng5+ {[%clk 00:13:31]} {[%emt
00:00:26]} Kd7 {[%clk 00:45:58]} {[%emt 00:00:28]} 38. Ke5 {[%clk 00:13:49]}
{[%emt 00:00:12]} c6 {[%clk 00:46:17]} {[%emt 00:00:10]} 39. Bf8 {[%clk
00:13:11]} {[%emt 00:01:09]} Ke8 {[%clk 00:44:54]} {[%emt 00:01:52]} 40. Bc5
{[%clk 00:12:58]} {[%emt 00:00:43]} Kd7 {[%clk 00:45:14]} {[%emt 00:00:10]} 41.
c3 {[%clk 00:12:23]} {[%emt 00:01:06]} Ke8 {[%clk 00:45:06]} {[%emt 00:00:35]}
42. Kd6 {[%clk 00:12:20]} {[%emt 00:00:35]} Kd8 {[%clk 00:45:13]} {[%emt
00:00:22]} 43. Nh3 {[%clk 00:11:42]} {[%emt 00:01:10]} Ke8 {[%clk 00:44:07]}
{[%emt 00:01:35]} 44. g5 {[%clk 00:11:43]} {[%emt 00:00:29]} Kd8 {[%clk
00:41:15]} {[%emt 00:03:19]} 45. Nf4 {[%clk 00:12:05]} {[%emt 00:00:12]} Be4
{[%clk 00:41:20]} {[%emt 00:00:25]} 46. Ne2 {[%clk 00:12:06]} {[%emt 00:00:28]}
Kc8 {[%clk 00:40:35]} {[%emt 00:01:16]} 47. Ke7 {[%clk 00:11:58]} {[%emt
00:00:37]} Bf5 {[%clk 00:37:40]} {[%emt 00:03:26]} 48. Kxf7 {[%clk 00:11:38]}
{[%emt 00:00:50]} Kd7 {[%clk 00:37:58]} {[%emt 00:00:12]} 49. Nf4 {[%clk
00:12:01]} {[%emt 00:00:07]} Be4 {[%clk 00:38:06]} {[%emt 00:00:22]} 50. Kg7
{[%clk 00:11:48]} {[%emt 00:00:44]} b4 {[%clk 00:37:20]} {[%emt 00:01:16]} 51.
f7 {[%clk 00:11:57]} {[%emt 00:00:20]} bxc3 {[%clk 00:37:03]} {[%emt 00:00:47]}
52. bxc3 {[%clk 00:11:37]} {[%emt 00:00:50]} Bd5 {[%clk 00:36:07]} {[%emt
00:01:26]} 53. Nxd5 {[%clk 00:11:54]} {[%emt 00:00:13]} cxd5 {[%clk 00:36:20]}
{[%emt 00:00:17]} 54. f8=Q {[%clk 00:12:16]} {[%emt 00:00:08]} Kc6 {[%clk
00:36:02]} {[%emt 00:00:46]} 55. Qd6+ {[%clk 00:12:30]} {[%emt 00:00:18]} Kb7
{[%clk 00:36:00]} {[%emt 00:00:32]} 56. Qd7+ {[%clk 00:12:43]} {[%emt
00:00:18]} Kb8 {[%clk 00:36:13]} {[%emt 00:00:17]} 57. Qa7+ {[%clk 00:12:51]}
{[%emt 00:00:23]} Kc8 {[%clk 00:36:31]} {[%emt 00:00:11]} 58. Bb6 {[%clk
00:13:15]} {[%emt 00:00:06]} d4 {[%clk 00:36:44]} {[%emt 00:00:18]} 59. Qc7#
{[%clk 00:13:11]} {[%emt 00:00:02]} 1-0

[Event "NJSK 2026 Jeugd C"]
[Site "Helmond, Netherlands"]
[Date "2026.04.26"]
[Round "2.12"]
[White "Okita, Ryoga"]
[Black "Bajnath, Dhanesh"]
[Result "1-0"]
[TimeControl "90min/40moves + 30sec/move"]
[WhiteTitle "-"]
[BlackTitle "-"]
[WhiteFideId "1090666"]
[BlackFideId "40104842"]
[WhiteElo "1812"]
[BlackElo "1889"]

1. e4 {[%clk 01:30:52]} {[%emt 00:00:05]} e5 {[%clk 01:31:00]} {[%emt
00:00:01]} 2. Nf3 {[%clk 01:31:16]} {[%emt 00:00:06]} Nc6 {[%clk 01:31:29]} 3.
d4 {[%clk 01:31:40]} {[%emt 00:00:06]} exd4 {[%clk 01:31:57]} {[%emt 00:00:02]}
4. Nxd4 {[%clk 01:32:03]} {[%emt 00:00:06]} Nf6 {[%clk 01:32:20]} {[%emt
00:00:07]} 5. Nxc6 {[%clk 01:32:28]} {[%emt 00:00:05]} bxc6 {[%clk 01:32:49]}
{[%emt 00:00:02]} 6. Qe2 {[%clk 01:32:55]} {[%emt 00:00:03]} a5 {[%clk
01:32:12]} {[%emt 00:01:06]} 7. e5 {[%clk 01:32:40]} {[%emt 00:00:46]} Nd5
{[%clk 01:32:26]} {[%emt 00:00:16]} 8. c4 {[%clk 01:33:05]} {[%emt 00:00:05]}
Ba6 {[%clk 01:32:52]} {[%emt 00:00:04]} 9. Qg4 {[%clk 01:31:41]} {[%emt
00:01:53]} Nb6 {[%clk 01:32:01]} {[%emt 00:01:21]} 10. Bd3 {[%clk 01:29:21]}
{[%emt 00:02:50]} d5 {[%clk 01:30:14]} {[%emt 00:02:17]} 11. Bg5 {[%clk
01:28:40]} {[%emt 00:01:11]} Be7 {[%clk 01:29:55]} {[%emt 00:00:49]} 12. Bxe7
{[%clk 01:28:32]} {[%emt 00:00:38]} Qxe7 {[%clk 01:30:08]} {[%emt 00:00:17]} 13.
Qxg7 {[%clk 01:27:50]} {[%emt 00:01:13]} O-O-O {[%clk 01:29:01]} {[%emt
00:01:35]} 14. O-O {[%clk 01:24:40]} {[%emt 00:03:42]} Bxc4 {[%clk 01:25:36]}
{[%emt 00:03:54]} 15. Bf5+ {[%clk 01:10:58]} {[%emt 00:14:12]} Kb7 {[%clk
01:24:18]} {[%emt 00:01:49]} 16. Re1 {[%clk 01:10:16]} {[%emt 00:01:11]} d4
{[%clk 00:46:17]} {[%emt 00:38:32]} 17. Nd2 {[%clk 01:07:21]} {[%emt 00:03:25]}
Bd5 {[%clk 00:38:37]} {[%emt 00:08:09]} 18. g3 {[%clk 01:06:07]} {[%emt
00:01:45]} h5 {[%clk 00:33:18]} {[%emt 00:05:49]} 19. e6 {[%clk 01:02:12]}
{[%emt 00:04:24]} h4 {[%clk 00:30:08]} {[%emt 00:03:40]} 20. Rac1 {[%clk
00:54:07]} {[%emt 00:08:36]} hxg3 {[%clk 00:20:55]} {[%emt 00:09:42]} 21. fxg3
{[%clk 00:54:03]} {[%emt 00:00:34]} Rdg8 {[%clk 00:11:03]} {[%emt 00:10:21]} 22.
Qxd4 {[%clk 00:49:42]} {[%emt 00:04:52]} fxe6 {[%clk 00:09:01]} {[%emt
00:02:32]} 23. Be4 {[%clk 00:49:32]} {[%emt 00:00:40]} Qg5 {[%clk 00:02:15]}
{[%emt 00:07:16]} 24. Nf3 {[%clk 00:47:36]} {[%emt 00:02:26]} Qh5 {[%clk
00:02:09]} {[%emt 00:00:37]} 25. Qf2 {[%clk 00:38:32]} {[%emt 00:09:34]} Rf8
{[%clk 00:00:37]} {[%emt 00:02:02]} 26. Rc3 {[%clk 00:37:42]} {[%emt 00:01:18]}
a4 {[%clk 00:00:41]} {[%emt 00:00:28]} 27. Qg2 {[%clk 00:34:08]} {[%emt
00:04:03]} Rfg8 {[%clk 00:00:35]} {[%emt 00:00:36]} 28. Rc2 {[%clk 00:33:15]}
{[%emt 00:01:23]} Rh6 {[%clk 00:00:39]} {[%emt 00:00:25]} 29. Nd4 {[%clk
00:32:42]} {[%emt 00:01:04]} Bxe4 {[%clk 00:00:54]} {[%emt 00:00:16]} 30. Qxe4
{[%clk 00:32:48]} {[%emt 00:00:24]} Qd5 {[%clk 00:00:35]} {[%emt 00:00:49]} 31.
Rxc6 {[%clk 00:31:41]} {[%emt 00:01:36]} Rd8 {[%clk 00:00:32]} {[%emt
00:00:34]} 32. Nxe6 {[%clk 00:25:28]} {[%emt 00:06:42]} 1-0